Cogmind - Beta 11.1 @@@ ROGUE MODE // 2022.05.05 @ 16:02:41 Player: Red Box Result: Self-destructed Performance ------------- Evolutions (1) 500 Regions Visited (3) 600 Robots Destroyed (46) 230 Value Destroyed (1042) 1042 Prototype IDs (7) 140 Alien Tech Used (0) 0 Bonus (7) 7 TOTAL SCORE: 2519 Bonus ------- Follower Combat Kills 7 Cogmind --------- Core Integrity 10/400 Matter 249/300 Energy 100/100 System Corruption 0% Temperature Cool (0) Movement Rolling (140) Ox4 Location -9/Materials Parts ------- > --- POWER (1) -------- (None) > --- PROPULSION (2) --- Wheel > --- UTILITY (4) ------ Improved Heat Sink High-capacity Storage Unit Targeting Computer > --- WEAPON (2) ------- Mace > --- INVENTORY (20) --- Wheel Large Storage Unit Large Battery (200) Reflective Plating Heavy EM Pulse Gun Heavy EM Pulse Gun Heavy Particle Cannon Heavy Particle Cannon Heavy Particle Cannon Heavy Particle Cannon Mini Grenade Launcher Peak State ------------ > --- POWER ------------ Ion Engine > --- PROPULSION ------- Wheel Wheel > --- UTILITY ---------- Improved Heat Sink Large Storage Unit Targeting Computer Light Armor Plating > --- WEAPON ----------- Improved EM Shotgun Light Cannon > --- INVENTORY -------- Ion Engine Wheel Wheel Wheel Compact Wheel Compact Wheel High-capacity Storage Unit Large Battery Heavy EM Pulse Gun Heavy EM Pulse Gun Heavy EM Pulse Gun Heavy EM Pulse Gun Light Cannon Rocket Launcher Mining Claw [Rating: 15] Favorites ----------- Power Ion Engine Engine Ion Engine Propulsion Wheel Leg Aluminum Leg Wheel Wheel Utility Targeting Computer Device Improved Heat Sink Storage Large Storage Unit Processor Targeting Computer Protection Light Armor Plating Weapon Light Cannon Energy Gun EM Pulse Gun Ballistic Gun Assault Rifle Ballistic Cannon Light Cannon Impact Weapon Mace Slashing Weapon Mining Claw Build | -11 -10 -10 -9 ------- Run | Scr Mat Min Mat Slots Evolved 2 | . . . 2 Power . | . . . . Propulsion . | . . . . Utility 2 | . . . 2 Weapon . | . . . . Parts Attached 39 | 9 11 2 17 Power 3 | 1 1 . 1 Engine 3 | 1 1 . 1 Core . | . . . . Reactor . | . . . . Propulsion 11 | 4 2 1 4 Treads . | . . . . Leg 2 | 2 . . . Wheel 9 | 2 2 1 4 Hover . | . . . . Flight . | . . . . Utility 11 | 2 3 1 5 Device 3 | 1 . . 2 Storage 6 | 1 2 1 2 Processor 1 | . 1 . . Hackware . | . . . . Protection 1 | . . . 1 Artifact . | . . . . Weapon 14 | 2 5 . 7 Energy Gun 5 | 1 1 . 3 Energy Cannon . | . . . . Ballistic Gun 1 | 1 . . . Ballistic Cannon 6 | . 3 . 3 Launcher . | . . . . Special Weapon . | . . . . Impact Weapon 1 | . . . 1 Slashing Weapon 1 | . 1 . . Piercing Weapon . | . . . . Special Melee Weapon . | . . . . Unidentified Prototypes 1 | . . . 1 Parts Lost 17 | . 4 . 13 Power 2 | . . . 2 Propulsion 7 | . 2 . 5 Utility 2 | . 1 . 1 Weapon 6 | . 1 . 5 Highest Loss Streak 9 | . 4 . 9 To Critical Strikes . | . . . . Average Slot Usage (%) 95 | . 96 100 92 Engine 12 | . 14 14 9 Wheel 25 | . 27 28 20 Device 4 | . 2 . 10 Storage 13 | . 14 14 11 Processor 10 | . 8 14 11 Protection 2 | . . . 9 Energy Gun 2 | . 5 . . Ballistic Gun 2 | . 5 . . Ballistic Cannon 16 | . 9 28 19 Slashing Weapon 3 | . 7 . . Naked Turns . | . . . . Heaviest Build 56 | 15 31 51 56 Greatest Support 32 | 20 26 26 32 Greatest Overweight (x) 5 | 1 1 2 5 Average Overweight (x) 1 | . . 1 1 Largest Inventory Capacity 20 | 8 15 20 20 Average Capacity 15 | 7 13 17 17 Most Carried 20 | 8 15 17 20 Average Carried 13 | 4 12 15 15 Final Capacity 20 | 8 15 20 20 Final Carried 17 | 7 15 17 11 Class Distribution -------------------- 100% | Mutant Dominant Class ---------------- Mutant | -10/Materials Mutant | -10/Mines Mutant | -9/Materials Resources | -11 -10 -10 -9 ----------- Run | Scr Mat Min Mat Matter Collected 1109 | 268 221 182 438 Remotely . | . . . . Salvage Created 1193 | 80 292 198 623 Parts 89 | 9 24 11 45 Haulers Intercepted 3 | . 1 . 2 Recyclers Shooed 2 | . . . 2 Parts Field Recycled . | . . . . Retrieved Matter . | . . . . Parts Self-Destructed . | . . . . Prevented . | . . . . Kills | -11 -10 -10 -9 ------- Run | Scr Mat Min Mat Combat Hostiles Destroyed 34 | . 8 7 19 Melee 3 | . . . 3 Guns 9 | . 8 . 1 Cannons 21 | . . 7 14 Classes Destroyed 9 | 2 5 . 2 Builder 1 | . 1 . . Tunneler 1 | 1 . . . Hauler 3 | . 1 . 2 Recycler 2 | 1 . 1 . Watcher 5 | . 2 . 3 Swarmer 13 | . 6 3 4 Grunt 19 | . 2 4 13 Brawler 1 | . . . 1 Sentry 1 | . . . 1 Best Kill Streak 6 | 2 6 3 6 Combat Bots Only 6 | . 6 3 5 Max Kills in Single Turn 2 | 1 2 2 1 Gunslinging 1 | . 1 . . Exploded . | . . . . Melee 1 | . . . 1 Uniques/NPCs Destroyed . | . . . . Combat | -11 -10 -10 -9 -------- Run | Scr Mat Min Mat Damage Taken 2079 | . 379 314 1386 Core 628 | . 105 133 390 Absorbed by Shields . | . . . . Regen/Repaired (Parts) 35 | . . . 35 Core Remaining (%) 52 | 100 . 4 . Volleys Fired 111 | 3 35 19 54 Largest 2 | 2 2 2 2 Hottest 84 | 60 70 70 84 Shots Fired 221 | 6 70 38 107 Gun 85 | 6 68 . 11 Cannon 136 | . 2 38 96 Launcher . | . . . . Special . | . . . . Kinetic 173 | 3 36 38 96 Thermal 8 | . 8 . . Explosive . | . . . . Electromagnetic 40 | 3 26 . 11 Robot Hit Streak 10 | 3 7 10 7 Robot Miss Streak 4 | 1 3 3 4 Penetration Max . | . . . . Secondary Targets 3 | . 3 . . Max Gunslinging Chain 1 | . 1 . . Shots Hit Robots 136 | 5 40 22 69 Core Hits 51 | 2 14 10 25 Critical Kills 2 | . 1 . 1 Critical Parts Destroyed . | . . . . Critical Strikes 12 | . 2 3 7 Destroy 1 | . 1 . . Blast 6 | . . 3 3 Corrupt 4 | . 1 . 3 Smash 1 | . . . 1 Melee Attacks 20 | . 9 . 11 Impact 11 | . . . 11 Slashing 9 | . 9 . . Piercing . | . . . . Sneak Attacks 3 | . 3 . . Combat Hostiles . | . . . . Follow-up Attacks . | . . . . Damage Inflicted 2690 | 73 703 404 1510 Guns 664 | 73 467 . 124 Cannons 1517 | . 17 404 1096 Explosions 75 | . 75 . . Melee 434 | . 144 . 290 Ramming . | . . . . Kinetic 1799 | 45 254 404 1096 Thermal 124 | . 124 . . Explosive . | . . . . Electromagnetic 333 | 28 181 . 124 Impact 290 | . . . 290 Slashing 144 | . 144 . . Piercing . | . . . . Highest Corruption . | . . . . Average Corruption . | . . . . Corruption Purged . | . . . . Corruption Blocked . | . . . . Overload Shots . | . . . . Overflow Damage 11 | . 7 . 4 Projectiles 2 | . . . 2 Explosions 2 | . 2 . . Melee 7 | . 5 . 2 Knockbacks 6 | . . 1 5 Impact 1 | . . . 1 Kinetic 5 | . . 1 4 Secondary . | . . . . Self-Inflicted Damage 36 | . 36 . . Shots 1 | . 1 . . Rammed . | . . . . Targets Rammed . | . . . . Kicked . | . . . . Crushed . | . . . . Highest Temperature 160 | . 160 159 14 Average Temperature 59 | . 58 62 7 Received Heat Transfer 732 | . 126 159 447 Siege Activations . | . . . . Robots Corrupted 1 | . . . 1 Combat Hostiles 1 | . . . 1 Parts Fried . | . . . . Impact Corruptions 1 | . . . 1 Robots Melted . | . . . . Combat Hostiles . | . . . . Parts Melted 1 | . 1 . . Heat Transferred 248 | . 248 . . Parts Sabotaged . | . . . . Parts Stolen . | . . . . Parts Stripped . | . . . . Power Chain Reactions 1 | . 1 . . Missiles Intercepted . | . . . . Alert | -11 -10 -10 -9 ------- Run | Scr Mat Min Mat Peak Influence 290 | 10 232 244 290 Initial 16 | . 6 9 16 Average 93 | 4 67 138 113 Maximum Alert Level 1 | . 1 1 1 Low Security (%) 82 | 100 81 67 92 Level 1 17 | . 18 32 7 Level 2 . | . . . . Level 3 . | . . . . Level 4 . | . . . . Level 5 . | . . . . High Security . | . . . . Max Security . | . . . . Squads Dispatched 2 | . . . 2 Investigation . | . . . . Extermination . | . . . . Reinforcement 2 | . . . 2 Assault . | . . . . Garrison . | . . . . Intercept . | . . . . Searches Triggered . | . . . . Construction Impeded . | . . . . Haulers Reinforced . | . . . . Active Scanning Responses . | . . . . Cargo Convoy Interrupts . | . . . . Stealth | -11 -10 -10 -9 --------- Run | Scr Mat Min Mat Distress Signals 1 | . . . 1 Communications Jammed . | . . . . Distress Signals . | . . . . Times Spotted 54 | . 13 8 33 Peak Tracking Total 12 | . 6 3 12 Tactical Retreats 3 | . . 1 2 Traps | -11 -10 -10 -9 ------- Run | Scr Mat Min Mat Traps Triggered . | . . . . Indirectly . | . . . . Trap Hack Attempts . | . . . . Triggered . | . . . . Disarmed . | . . . . Reprogrammed . | . . . . Reused . | . . . . Traps Extracted . | . . . . Installed . | . . . . Triggered . | . . . . Machines | -11 -10 -10 -9 ---------- Run | Scr Mat Min Mat Machines Disabled 1 | . . . 1 Max in Single Turn 1 | . . . 1 Machines Sabotaged . | . . . . Garrisons Compromised . | . . . . Overloaded Fab Kills . | . . . . Hacking | -11 -10 -10 -9 --------- Run | Scr Mat Min Mat Machines Accessed 10 | . 9 . 1 Terminals 7 | . 7 . . Fabricators . | . . . . Repair Stations 1 | . . . 1 Recycling Units 2 | . 2 . . Scanalyzers . | . . . . Garrison Access . | . . . . Total Hacks 26 | . 24 . 2 Successful 16 | . 14 . 2 Failed 10 | . 10 . . Catastrophic 1 | . 1 . . Database Lockouts . | . . . . Manual 10 | . 10 . . Terminals 19 | . 19 . . Fabricators . | . . . . Repair Stations 2 | . . . 2 Recycling Units 5 | . 5 . . Scanalyzers . | . . . . Garrison Access . | . . . . Terminal Hacks 10 | . 10 . . Robot Analysis 2 | . 2 . . Prototype ID Bank 4 | . 4 . . Alert Level 1 | . 1 . . Unreport Threat 2 | . 2 . . Registered Components 1 | . 1 . . Fabricator Hacks . | . . . . Repair Station Hacks 2 | . . . 2 Scan Component 1 | . . . 1 Repair 1 | . . . 1 Recycling Unit Hacks . | . . . . Scanalyzer . | . . . . Garrison Access Hacks . | . . . . Unauthorized Hacks 4 | . 4 . . Terminals 4 | . 4 . . Track 1 | . 1 . . Assimilate 1 | . 1 . . Operators 2 | . 2 . . Fabricators . | . . . . Repair Stations . | . . . . Recycling Units . | . . . . Scanalyzers . | . . . . Garrison Access . | . . . . Data Cores Recovered . | . . . . Used . | . . . . Hacking Detections 8 | . 8 . . Full Trace Events 1 | . 1 . . Feedback Events . | . . . . Feedback Blocked . | . . . . Robot Schematics Acquired . | . . . . Robots Built . | . . . . Authchips . | . . . . Time . | . . . . Total Robot Build Rating . | . . . . Part Schematics Acquired . | . . . . Parts Built . | . . . . Authchips . | . . . . Time . | . . . . Total Part Build Rating . | . . . . Parts Repaired 1 | . . . 1 Time 38 | . . . 38 Parts Recycled . | . . . . Recycled Matter . | . . . . Retrieved Matter . | . . . . Retrieved Components . | . . . . Parts Scanalyzed . | . . . . Part Schematics Acquired . | . . . . Parts Damaged . | . . . . Bothacking | -11 -10 -10 -9 ------------ Run | Scr Mat Min Mat Used RIF Installer . | . . . . Robots Hacked . | . . . . Non-combat . | . . . . Combat . | . . . . Robot Hacks Applied . | . . . . Relay Couplers Released . | . . . . Fabnet Peak Effective % . | . . . . Robots Rewired . | . . . . Allies Hacked . | . . . . Hacks Repelled . | . . . . Allies | -11 -10 -10 -9 -------- Run | Scr Mat Min Mat Total Allies 2 | . 1 1 . Largest Group 2 | . 1 2 2 Highest-Rated Group 41 | . 10 41 41 Highest-Rated Ally 31 | . 10 31 31 Total Orders 15 | . 4 4 7 STAY 8 | . 2 2 4 FOLLOW 7 | . 2 2 3 Ally Attacks 1 | . . . 1 Total Damage 20 | . . . 20 Kills 1 | . . . 1 Allies Corrupted . | . . . . Allies Melted . | . . . . Intel | -11 -10 -10 -9 ------- Run | Scr Mat Min Mat Robot Analysis Total 2 | . 2 . . Derelict Logs Recovered 1 | . . 1 . Drone Launches . | . . . . Drone Recoveries . | . . . . Exploration | -11 -10 -10 -9 ------------- Run | Scr Mat Min Mat Turns Passed 2474 | 111 1095 514 754 Spaces Moved 1745 | 78 812 427 428 Core 4 | 4 . . . Treads . | . . . . Legs 42 | 42 . . . Wheels 1699 | 32 812 427 428 Hover . | . . . . Flight . | . . . . Fastest Speed 50 | 50 80 95 95 Average Speed 101 | 101 100 102 102 Slowest Speed 190 | 190 105 110 155 Overloaded Moves . | . . . . Propulsion Burnouts . | . . . . Robots Hopped . | . . . . Cave-ins Triggered . | . . . . Exploration Rate (%) 60 | 6 96 97 43 Regions Visited 3 Branch Regions 1 Pre-discovered Areas . | . . . . Known Exits Taken . | . . . . Unknown Exits Taken 3 | 1 1 1 . Scrap Searched 1 | . . 1 . Spaces Dug 4 | . 4 . . Terrain Destroyed 11 | . 10 . 1 Melee 4 | . 4 . . Projectile 1 | . . . 1 AOE 6 | . 6 . . Terrain Rammed . | . . . . Walls Destroyed . | . . . . Machines Disabled . | . . . . Actions | -11 -10 -10 -9 --------- Run | Scr Mat Min Mat Total 2186 | 99 1003 466 618 Wait 218 | . 111 13 94 Move 1742 | 77 811 426 428 Hop . | . . . . Pick Up 36 | 8 16 4 8 Fast Attach 15 | 8 4 . 3 Attach 16 | . 3 1 12 Detach . | . . . . Swap 8 | 1 4 1 2 Drop 20 | 2 10 2 6 Fire 111 | 3 35 19 54 Melee 20 | . 9 . 11 Ram . | . . . . Kick . | . . . . Crush . | . . . . Escape Stasis . | . . . . Rewire . | . . . . Trap . | . . . . Miscellaneous . | . . . . Route ------- -11/Scrapyard -10/Materials (discovered 4 exits: *Mat x3 / [*Min]) -10/Mines (discovered 2 exits: *Mat x2) -9/Materials (discovered 1 exit: [*Mat]) History --------- Turn | Location | Event 27 | -11/Scrapyard | Discovered new exit (range 15) 112 | -11/Scrapyard | Entered Materials 329 | -10/Materials | Build established: Mutant 384 | -10/Materials | Lost 4 parts (2n1u1w) 408 | -10/Materials | Discovered new exit (range 8) 569 | -10/Materials | Discovered new exit (range 9) 656 | -10/Materials | Discovered new exit (range 4) 990 | -10/Materials | Discovered new exit (range 16) 1207 | -10/Materials | Entered Mines 1207 | -10/Mines | Accompanied by 1 ally 1216 | -10/Mines | Core integrity fell below 50% 1295 | -10/Mines | Learned Materials security intel 1336 | -10/Mines | Discovered new exit (range 8) 1399 | -10/Mines | Received a Rocket Launcher from a helpful Derelict 1433 | -10/Mines | Core integrity fell below 20% 1569 | -10/Mines | Received a Mining Laser from a helpful Derelict 1710 | -10/Mines | Discovered new exit (range 8) 1721 | -10/Mines | Entered Materials 1721 | -9/Materials | Accompanied by 2 allies 1721 | -9/Materials | Evolved 2 slots: Utility x2 1782 | -9/Materials | Repaired Imp. Heat Sink 2007 | -9/Materials | Discovered new exit (range 16) 2381 | -9/Materials | Core integrity fell below 50% 2413 | -9/Materials | Lost 9 parts (1p4n1u3w) 2445 | -9/Materials | Core integrity fell below 20% 2468 | -9/Materials | Lost 3 parts (1n2w) 2475 | -9/Materials | Self-destructed Last Messages --------------- 02432_ K-01 Serf collects debris. 02432_ U-05 Engineer lays Concrete. 02433_ U-05 Engineer builds a Wall. 02434_ U-05 Engineer lays Concrete. 02435_ Acquired 47 matter. 02435_ R-06 Scavenger collects Heat Sink. 02437_ K-01 Serf collects debris. 02437_ Wheel destroyed. 02438_ G-34 Mercenary knocked back. 02438_ R-06 Scavenger collects Aluminum Leg. 02441_ K-01 Serf collects debris. 02445_ G-34 Mercenary destroyed. 02460_ K-01 Serf collects debris. 02465_ Destroyed Heat Sink. 02465_ Y-45 Defender system corrupted by crushing effect. 02465_ K-01 Serf collects debris. 02466_ Y-45 Defender system terminally corrupted. 02468_ K-01 Serf collects debris. 02473_ Acquired 8 matter. 02474_ K-01 Serf collects debris. Map ----- +----------------------------------------------------+ | ### T # # """#??????????????????????????????? | | + " # + """#??????????????????????????????? | | # # # #??????????????????????????????? | | ###### # #??????????????????????????????? | | #?######??????????????????????????????? | | ######## #?????????????############????????????? | | # ! # ########??????? """T""" #???????????? | | # # # #??????? #???????????? | | # """ + # #??????? !! #?? ????????? | | # """ # # +??????? !! #? ????????? | | # """ # # #???????? ! # !????? | | # # # % #???????? *% / ??? | | ######## # #???????? = # ^! ?? | | # # ##+###############""#""#+## !!^ ?? | | # # " [ # ! !!! #? | | + """ / #############" % # !!! ? | | # """ # #???????????#" *! " ? | | # """ # #???########## =% " ?? | | # ?# ####???# # %! " ? | | ###+##?# ######## """"" #"/###"""" ???? | | # # # # """""%##%#"""""" #?????##? | | # # =# "" # """"" #% # | | # """ +%!%+ ""S # """"" +%% * % # ? | | # """ # !!# "" ]# k%""%%r# % #???????? | | # """ # # #[%""""r ########/######???????? | | # ?# # [ #[=""" @ #?# #??????????? | | ######?# %########%= = [ #?# % #??????????? | | ???????# ####???##########?# %= #??????????? | | ???????# % !!##?????????????# = #??????????? | | ???????# !#?????????????# #??????????? | | ???????# !#?????????????# #??????????? | | ???????# !#?????????????# #??????????? | | ######## !#?????????????# % #??????????? | | # % !!##?????????????# %% #??????????? | | # ####??????????????######+###??????????? | | # #??????????????????????#%?????????????? | | + #??????????????????????#%?????????????? | | # #??????????????????????# ?????????????? | | # #??????????????????????# ?????????????? | | # #??????????????????????# ?????????????? | | # ###########????????????? ?????????????? | | ######## # #????????????? ?????????????? | | ???????# # #???????????????????????????? | | ???????# # #???????????????????????????? | | ???????# # #???????????????????????????? | | ???????# + #???????????????????????????? | | ???????# ^# #???????????????????????????? | | ???????# # | #???????????????????????????? | | ???????# # #???????????????????????????? | | ???????# ###########???????????????????????????? | +----------------------------------------------------+ Best States ------------- Heat Dissipation 42 Energy Generation 10 Energy Capacity 250 Matter Stores 300 Matter Capacity 300 Sight Range 16 Terrain Scan Range 16 Terrain Scan Density 10 Armor Coverage 150 Evasion (%) 45 Targeting Accuracy 5 Item Schematics ----------------- None Robot Schematics ------------------ None Fabricated ------------ Nothing Alien Tech Used ----------------- None Achievements -------------- None Challenges ------------ None Game ------ Seed WeaponCryofiberReplicator Manual? 0 Play Time 00:31:51 Cumulative 323.7 hours Start 2022.05.02 @ 22:05:30 End 2022.05.05 @ 16:02:41 Sessions 3 Manual Loads 0 Difficulty Rogue Special Mode None Game No. 266 Rogue 266 Adventurer 0 Explorer 0 Win Type - Total 0 Types 0/0/0/0/0/0/0/0/0 Lore% 56 Gallery% 61 Achievement% 44 Wizard Run 0 Options --------- ASCII 0 Keyboard 0 Movement Mouse Keybinds 0 Fullscreen 1 Font 16/SmallcapsGlow Map View 75x55 Tactical HUD 1 Map Filters NONE Filters NONE Steam 1 RUN: 2de34f74-0d89-4199-bccc-bab4dc21c10e